bitfinex/quotes_SOLUSD_20250226
["timestamp","ask_amount","ask_price","bid_price","bid_amount"]
[1740561012176,0.14124135,140.78,140.77,6.2552]
[1740561012546,0.14124135,140.78,140.77,212.52173777]
[1740561012745,0.063,140.82,140.77,277.71173777]
[1740561012973,0.063,140.82,140.8,20.0]
[1740561013176,0.063,140.82,140.8,226.26653777]
[1740561013377,0.063,140.82,140.8,206.26653777]
[1740561016686,0.063,140.82,140.8,70.06653777]
[1740561018284,0.063,140.82,140.77,212.52173777]
[1740561018461,0.063,140.82,140.77,76.32173777]
[1740561019884,0.063,140.82,140.78,1.0]
[1740561020957,0.063,140.82,140.81,8.1539]
[1740561021157,0.063,140.82,140.81,214.42043777]
[1740561021462,0.063,140.82,140.81,215.42043777]
[1740561022483,0.063,140.82,140.81,216.42043777]
[1740561023080,0.063,140.82,140.81,215.42043777]
[1740561023288,0.063,140.82,140.81,222.52213777]
[1740561023483,0.063,140.82,140.81,221.52213777]
[1740561023982,0.063,140.82,140.81,222.52213777]
[1740561024683,0.063,140.86,140.82,1.0]
[1740561024887,0.063,140.86,140.84,42.8]
[1740561025063,0.063,140.86,140.85,6.5543]
[1740561025262,0.063,140.86,140.85,281.62090044]
[1740561025456,0.063,140.86,140.85,258.16653777]
[1740561026073,0.063,140.86,140.85,257.16653777]
[1740561027086,0.063,140.86,140.85,264.26623777]
[1740561027462,0.063,140.86,140.85,257.16653777]
[1740561028086,0.063,140.86,140.85,264.26623777]
[1740561028288,0.063,140.86,140.85,285.65623777]
[1740561028680,0.063,140.86,140.85,264.26623777]
[1740561029389,0.063,140.86,140.85,257.16653777]
[1740561030174,0.063,140.86,140.85,264.26623777]
[1740561031380,0.063,140.86,140.85,70.06653777]
[1740561032095,0.063,140.86,140.85,277.55623777]
[1740561032394,0.063,140.86,140.85,285.00013777]
[1740561032589,0.063,140.87,140.85,286.56153777]
[1740561032759,0.0001,140.87,140.86,1.0]
[1740561032978,0.063,140.93,140.89,20.0]
[1740561033274,0.063,140.93,140.92,1.5149]
[1740561033472,0.063,140.93,140.92,207.78143777]
[1740561033692,0.063,140.93,140.92,213.36273777]
[1740561034190,0.063,140.93,140.92,206.26653777]
[1740561035505,0.063,140.93,140.89,206.26653777]
[1740561035686,0.063,140.93,140.89,70.06653777]
[1740561037005,0.063,140.93,140.89,77.16413777]
[1740561037500,0.063,140.93,140.89,278.55413777]
[1740561037709,0.063,140.93,140.89,279.55413777]
[1740561037877,0.063,140.93,140.89,278.55413777]
[1740561038885,0.063,140.93,140.89,257.16413777]
[1740561039090,0.063,140.93,140.89,256.16413777]
[1740561039674,0.063,140.93,140.89,257.16413777]
[1740561039879,0.063,140.93,140.9,1.0]
[1740561040297,0.063,140.93,140.89,257.16413777]
[1740561040494,0.063,140.93,140.89,256.16413777]
[1740561040708,0.063,140.93,140.89,206.26653777]
[1740561041088,0.063,140.93,140.87,212.80813777]
[1740561041281,1.6317,140.93,140.87,206.26653777]
[1740561041700,0.063,140.93,140.87,206.26653777]
[1740561044981,7.0967,140.91,140.85,70.06653777]
[1740561045709,24.8385,140.91,140.85,70.06653777]
[1740561045909,1.5262,140.9,140.85,70.06653777]
[1740561046818,7.0977,140.89,140.85,70.06653777]
[1740561047721,7.0977,140.89,140.87,0.03]
[1740561050417,7.0967,140.91,140.87,0.03]
[1740561050721,88.1962,140.92,140.87,0.03]
[1740561051403,81.1,140.92,140.87,0.03]
[1740561051983,7.1589,140.93,140.87,70.09653777]
[1740561052800,7.1589,140.93,140.87,213.39523777]
[1740561058196,0.063,140.93,140.87,257.80013777]
[1740561058390,0.063,140.93,140.87,280.19013777]
[1740561058625,0.063,140.93,140.88,2.06412441]
[1740561058809,0.063,140.93,140.89,49.4317]
[1740561059212,0.063,140.93,140.89,50.49569101]
[1740561059706,0.063,140.93,140.92,20.0]
[1740561059914,0.063,140.93,140.92,21.6573]
[1740561060327,0.063,140.93,140.92,8.7535]
[1740561060826,0.063,140.93,140.92,1.6573]
[1740561060996,0.063,140.93,140.92,70.06653777]
[1740561063425,0.063,140.93,140.9,77.16363777]
[1740561067220,0.063,140.93,140.9,298.36074244]
[1740561067429,0.063,140.93,140.9,297.29663777]
[1740561067927,0.063,140.93,140.91,7.39537554]
[1740561068413,0.063,140.93,140.92,7.0962]
[1740561070133,0.063,140.93,140.92,256.16273777]
[1740561075141,0.0001,140.93,140.92,279.55273777]
[1740561075807,0.0001,140.93,140.92,281.11603777]
[1740561076534,0.0001,140.93,140.92,280.11603777]
[1740561076836,0.0001,140.93,140.92,258.72603777]
[1740561077717,0.0001,140.93,140.92,281.11603777]
[1740561080629,0.0001,140.97,140.96,72.3127]
[1740561080838,0.0001,140.97,140.96,279.6426141]
[1740561081007,0.0001,140.97,140.96,278.57923777]
[1740561081708,0.0001,140.97,140.96,277.57923777]
[1740561081937,0.0001,140.97,140.96,285.67343777]
[1740561082122,0.0001,140.97,140.96,284.67343777]
[1740561082527,0.0001,140.97,140.96,285.67343777]
[1740561082726,0.0001,140.97,140.96,284.67343777]
[1740561082929,0.0001,140.97,140.96,262.28343777]
[1740561083629,0.0001,140.97,140.96,263.28343777]
[1740561083833,0.0001,140.97,140.96,262.28343777]
[1740561088215,0.0001,140.97,140.96,263.28343777]
[1740561088438,0.0001,140.97,140.96,262.28343777]
[1740561088838,0.0001,140.97,140.96,283.67343777]
[1740561091144,0.0001,140.97,140.96,284.67343777]
[1740561092046,0.0001,140.97,140.96,283.67343777]
[1740561094421,0.0001,140.97,140.96,284.67343777]
[1740561095230,0.0001,140.97,140.96,283.67343777]
[1740561095548,0.0001,140.97,140.96,284.67343777]
[1740561095751,0.0001,140.97,140.96,283.67343777]
[1740561097254,0.0001,140.97,140.96,262.28343777]
[1740561097444,0.0001,140.97,140.96,206.26653777]
[1740561102837,0.0001,140.97,140.96,256.16073777]
[1740561105956,0.0001,140.97,140.96,213.36073777]
[1740561110780,0.0001,140.97,140.96,256.16073777]
[1740561114180,0.0001,140.97,140.96,284.84913777]
[1740561114770,0.0001,140.97,140.96,262.45913777]
[1740561115982,0.0001,140.97,140.96,284.84913777]
[1740561118788,0.0001,140.97,140.96,283.84913777]
[1740561119590,0.0001,140.97,140.96,284.84913777]
[1740561119883,0.0001,140.97,140.96,283.84913777]
[1740561120071,0.0001,140.97,140.96,284.84913777]
[1740561120272,0.0001,140.97,140.96,213.36073777]
[1740561122184,0.063,141.01,140.99,1.0]
[1740561122383,0.063,141.01,140.99,206.26653777]
[1740561123669,0.063,141.01,140.99,213.35873777]
[1740561124072,0.05264462,141.02,140.99,213.35873777]
[1740561124479,0.05264462,141.02,140.99,231.09043777]
[1740561125596,0.05264462,141.02,141.01,20.0]
[1740561125894,0.05264462,141.02,141.01,27.0916]
[1740561126998,0.05264462,141.02,141.01,233.35813777]
[1740561127294,4.462e-05,141.02,141.01,276.15813777]
[1740561128796,4.462e-05,141.02,141.01,297.54813777]
[1740561129397,4.462e-05,141.02,141.01,298.54813777]
[1740561129601,4.462e-05,141.02,141.01,299.54813777]
[1740561130076,4.462e-05,141.02,141.01,298.54813777]
[1740561130492,4.462e-05,141.02,141.01,299.54813777]
[1740561132701,4.462e-05,141.02,141.01,306.11973777]
[1740561134313,4.462e-05,141.02,141.01,305.11973777]
[1740561134706,4.462e-05,141.02,141.01,306.11973777]
[1740561135211,4.462e-05,141.02,141.01,305.11973777]
[1740561135587,4.462e-05,141.02,141.01,304.11973777]
[1740561135797,4.462e-05,141.02,141.01,256.15813777]
[1740561137316,4.462e-05,141.02,141.01,206.26653777]
[1740561137517,4.462e-05,141.02,141.01,70.06653777]
[1740561139911,4.462e-05,141.02,140.98,70.06653777]
[1740561141104,4.462e-05,141.02,140.98,77.15953777]
[1740561142722,4.462e-05,141.02,140.98,213.35953777]
[1740561149933,4.462e-05,141.02,140.98,231.09253777]
[1740561151733,4.462e-05,141.02,141.01,20.0]
[1740561152944,4.462e-05,141.02,140.98,213.35953777]
[1740561160349,4.462e-05,141.02,141.01,20.0]
[1740561162049,4.462e-05,141.02,141.01,27.0916]
[1740561165257,4.462e-05,141.02,141.01,233.35813777]
[1740561168150,4.462e-05,141.02,141.01,97.15813777]
[1740561169140,4.462e-05,141.02,141.01,70.06653777]
[1740561174262,4.462e-05,141.02,140.98,70.06653777]
[1740561174961,4.462e-05,141.02,141.0,0.063]
[1740561181158,1.5358,141.01,141.0,0.063]
[1740561182259,8.6274,141.01,141.0,0.063]
[1740561183277,4.462e-05,141.02,141.0,70.12953777]
[1740561183839,4.462e-05,141.02,141.0,206.32953777]
[1740561188973,4.462e-05,141.02,141.0,0.063]
[1740561190048,4.462e-05,141.02,141.0,7.1548]
[1740561190763,4.462e-05,141.02,141.0,213.42133777]
[1740561201262,4.462e-05,141.02,141.0,257.22133777]
[1740561202875,4.462e-05,141.02,141.0,213.42133777]
[1740561205369,4.462e-05,141.02,141.0,206.32953777]
[1740561205567,4.462e-05,141.02,141.0,213.42163777]
[1740561208970,0.78956762,141.02,141.0,213.42163777]
[1740561211597,0.78956762,141.02,141.0,77.22163777]
[1740561212496,0.78956762,141.02,141.0,70.12953777]
[1740561212791,6.08736531,141.04,141.0,70.12953777]
[1740561213494,6.5264,141.07,141.0,70.12953777]
[1740561213794,7.0891,141.06,141.0,70.12953777]
[1740561214297,1.6149,141.05,141.0,70.12953777]
[1740561215282,7.0901,141.04,141.0,70.12953777]
[1740561216911,81.1,141.03,141.0,0.063]
[1740561218198,7.0911,141.02,141.0,0.063]
[1740561221696,17.7254,141.04,141.0,0.063]
[1740561221886,24.8155,141.04,141.0,0.063]
[1740561223384,24.8455,141.04,141.0,0.063]
[1740561228502,1.0,141.02,141.0,0.063]
[1740561228677,81.1,141.03,140.97,0.063]
[1740561228678,82.1,141.03,140.97,0.063]
[1740561228877,24.8455,141.04,140.97,70.12953777]
[1740561229197,24.8455,141.04,140.97,77.22313777]
[1740561229603,7.1201,141.04,140.97,77.22313777]
[1740561233710,7.1201,141.04,140.97,213.42313777]
[1740561237012,1.0,141.03,140.97,70.12953777]
[1740561238210,24.819,141.02,140.97,0.063]
[1740561238917,26.819,141.02,140.97,0.063]
[1740561240012,1.0,141.0,140.97,0.063]
[1740561240222,1.0,140.99,140.97,0.063]
[1740561240409,1.0,140.98,140.97,0.0001]
[1740561241228,21.0,140.98,140.97,0.0001]
[1740561241513,22.0,140.98,140.97,0.0001]
[1740561242020,21.0,140.98,140.97,0.0001]
[1740561242308,81.1,140.99,140.97,0.0001]
[1740561242906,1.0,141.03,140.97,0.0001]
[1740561242907,81.1,141.03,140.97,0.0001]
[1740561243814,0.03,141.04,140.97,70.06663777]
[1740561244011,0.03,141.04,140.98,7.0932]
[1740561246901,0.03,141.03,140.98,7.0932]
[1740561248410,0.03,141.03,140.98,77.15973777]
[1740561252424,0.03,141.03,140.99,6.2052]
[1740561253823,0.03,141.03,141.02,20.0]
[1740561254126,0.03,141.03,141.02,90.06653777]
[1740561254619,0.03,141.03,141.0,71.59003777]
[1740561257107,0.03,141.03,141.0,78.68203777]
[1740561260336,0.03,141.03,141.0,71.59003777]
[1740561260842,0.03,141.03,141.0,70.06653777]
[1740561263133,0.03,141.03,140.97,71.67233777]
[1740561266537,0.03,141.03,140.97,78.76593777]
[1740561269548,0.03,141.03,140.97,96.50013777]
[1740561272354,0.03,141.03,140.97,232.70013777]
[1740561273656,82.13,141.03,140.97,0.0001]
[1740561273844,1.6523,141.01,140.97,0.0001]
[1740561274050,2.6523,141.01,140.97,0.0001]
[1740561274241,1.0,140.99,140.97,0.0001]
[1740561274555,82.1,140.99,140.97,0.0001]
[1740561274767,83.1,140.98,140.97,0.0001]
[1740561275055,82.1,140.98,140.97,0.0001]
[1740561275558,84.86870147,140.98,140.97,0.0001]
[1740561275954,91.96190147,140.98,140.97,0.0001]
[1740561276158,11.86190147,140.98,140.97,0.0001]
[1740561276368,21.0,140.95,140.93,0.063]
[1740561276657,102.1,140.95,140.93,0.063]
[1740561277352,1.0,140.94,140.93,0.063]
[1740561277736,1.0,140.93,140.87,70.09653777]
[1740561277937,7.0962,140.92,140.87,70.09653777]
[1740561278137,7.0962,140.92,140.87,0.03]
[1740561278757,89.1962,140.92,140.87,0.03]
[1740561278960,90.8164,140.92,140.87,0.03]
[1740561279539,10.7164,140.92,140.87,0.03]
[1740561279741,10.7164,140.92,140.91,0.0001]
[1740561280044,1.0,140.88,140.87,0.03]
[1740561280939,2.0,140.88,140.87,0.03]
[1740561281254,1.0,140.88,140.87,0.03]
[1740561281852,2.0,140.88,140.87,0.03]
[1740561282054,9.0982,140.88,140.87,0.03]
[1740561282257,8.0982,140.88,140.87,0.03]
[1740561282656,9.0982,140.88,140.87,0.03]
[1740561282854,8.0982,140.88,140.87,0.03]
[1740561284478,9.0982,140.88,140.87,0.03]
[1740561284776,8.0982,140.88,140.87,0.03]
[1740561285064,9.0982,140.88,140.87,0.03]
[1740561285375,8.0982,140.88,140.87,0.03]
[1740561285559,9.0982,140.88,140.87,0.03]
[1740561286987,8.0982,140.88,140.87,0.03]
[1740561288066,10.63550932,140.88,140.87,0.03]
[1740561288369,7.0972,140.9,140.87,0.03]
[1740561290557,88.1968,140.91,140.87,0.03]
[1740561292049,1.0,140.9,140.87,0.03]
[1740561292254,1.0,140.89,140.87,0.03]
[1740561292463,1.0,140.88,140.87,0.03]
[1740561293982,7.0982,140.88,140.87,0.03]
[1740561295569,8.0982,140.88,140.87,0.03]
[1740561296993,9.0982,140.88,140.87,0.03]
[1740561297283,8.0982,140.88,140.87,0.03]
[1740561297469,9.0982,140.88,140.87,0.03]
[1740561297988,28.1002,140.84,140.83,0.063]
[1740561298290,109.2002,140.84,140.82,0.063]
[1740561301675,108.2002,140.84,140.82,0.063]
[1740561301876,7.0999,140.85,140.82,0.063]
[1740561303100,7.0992,140.86,140.82,0.063]
[1740561303702,7.0977,140.89,140.82,8.0462]
[1740561303997,7.0973,140.9,140.82,214.31273777]
[1740561305390,7.0973,140.9,140.82,221.41383777]
[1740561306666,82.1,140.89,140.82,8.0462]
[1740561306907,81.1,140.89,140.82,8.0462]
[1740561307268,0.063,140.87,140.82,8.0462]
[1740561308192,1.063,140.87,140.82,6.513]
[1740561308768,8.0992,140.86,140.82,0.063]
[1740561309193,1.0,140.84,140.82,0.063]
[1740561309404,82.1,140.84,140.82,0.063]
[1740561309901,81.1,140.84,140.82,0.063]
[1740561311192,88.2004,140.84,140.82,0.063]
[1740561311400,0.063,140.87,140.82,0.063]
[1740561311703,0.063,140.87,140.82,70.12953777]
[1740561313288,0.063,140.87,140.83,7.7976]
[1740561313695,0.063,140.87,140.83,77.86413777]
[1740561314784,0.063,140.87,140.83,214.06413777]
[1740561315183,0.063,140.87,140.84,7.1002]
[1740561315906,0.063,140.87,140.86,20.0]
[1740561316196,0.03,140.91,140.88,1.6155]
[1740561316499,0.03,140.91,140.88,207.88203777]
[1740561317171,0.03,140.91,140.9,27.0972]
[1740561318781,0.1450203,140.95,140.91,6.4009]
[1740561319097,7.0923,141.0,140.91,212.66743777]
[1740561320091,7.1546,141.01,140.91,219.76363777]
[1740561320285,7.1546,141.01,140.94,20.0]
[1740561320480,7.1546,141.01,140.94,226.26653777]
[1740561321200,0.063,141.01,140.94,226.26653777]
[1740561321411,0.063,141.01,140.94,206.26653777]
[1740561323602,107.9838,141.01,140.94,70.06653777]
[1740561324981,81.163,141.01,140.94,70.06653777]
[1740561325502,7.0921,141.0,140.94,70.06653777]
[1740561327679,3.59399825,140.99,140.94,70.06653777]
[1740561327876,10.68689825,140.99,140.94,70.06653777]
[1740561328800,81.163,141.01,140.94,70.06653777]
[1740561329004,81.163,141.01,140.95,1.6231]
[1740561329587,0.063,141.01,140.95,71.68963777]
[1740561329792,0.063,141.01,140.96,7.0942]
[1740561329994,0.063,141.01,140.97,6.0798]
[1740561330188,0.063,141.01,140.97,76.14633777]
[1740561330384,0.063,141.01,140.97,255.03633777]
[1740561330608,0.063,141.01,141.0,20.0]
[1740561330796,0.063,141.01,141.0,226.26653777]
[1740561331185,0.063,141.01,141.0,206.26653777]
[1740561332408,0.063,141.01,141.0,213.35863777]
[1740561333216,0.063,141.01,141.0,206.26653777]
[1740561334004,0.063,141.01,140.98,70.06653777]
[1740561334698,0.063,141.01,140.97,6.0798]
[1740561335013,0.063,141.01,140.97,76.14633777]
[1740561337803,0.063,141.01,140.94,6.6104]
[1740561338011,2.063,141.01,140.94,76.67693777]
[1740561338209,1.063,141.01,140.94,76.67693777]
[1740561339216,25.8225,141.0,140.94,70.06653777]
[1740561340507,7.0921,141.0,140.94,70.06653777]
[1740561341441,7.1546,141.01,140.94,70.06653777]
[1740561342036,24.8838,141.01,140.94,70.06653777]
[1740561342335,3.61594518,140.99,140.94,70.06653777]
[1740561342736,24.8838,141.01,140.94,70.06653777]
[1740561343320,7.1546,141.01,140.94,77.16163777]
[1740561343501,0.063,141.01,140.94,213.36163777]
[1740561344629,0.063,141.01,140.94,231.09963777]
[1740561346012,0.063,141.01,140.95,8.2283]
[1740561346823,0.063,141.01,140.95,214.49483777]
[1740561347612,0.063,141.01,140.98,20.0]
[1740561347813,0.063,141.01,140.99,7.0927]
[1740561349108,0.063,141.01,140.99,213.35923777]
[1740561350932,0.063,141.02,141.0,6.3623]
[1740561351240,0.03,141.03,141.01,1.6598]
[1740561351424,0.03,141.03,141.01,209.92633777]
[1740561352218,0.0001,141.04,141.03,20.0]
[1740561352417,2.03e-05,141.05,141.04,20.0]
[1740561352629,2.03e-05,141.05,141.04,226.26653777]
[1740561352936,2.03e-05,141.05,141.04,232.86533777]
[1740561353126,0.063,141.08,141.05,1.5626]
[1740561353442,0.0001,141.08,141.07,20.0]
[1740561354547,0.03,141.17,141.1,6.5932]
[1740561354721,0.03,141.17,141.1,212.85973777]
[1740561355122,0.03,141.17,141.11,7.0866]
[1740561355635,0.03,141.17,141.1,219.94673777]
[1740561355815,0.03,141.17,141.1,212.85973777]
[1740561356219,0.03,141.17,141.1,219.94673777]
[1740561356540,7.1136,141.17,141.1,212.85973777]
[1740561357231,0.03,141.17,141.1,212.85973777]
[1740561357418,0.03,141.17,141.1,220.94663777]
[1740561357818,0.03,141.17,141.1,219.94663777]
[1740561358727,7.1136,141.17,141.1,219.94663777]
[1740561359241,7.0848,141.15,141.1,212.85973777]
[1740561359627,0.03,141.17,141.1,212.85973777]
[1740561359826,7.0854,141.14,141.1,206.26653777]
[1740561360229,0.03,141.17,141.1,206.26653777]
[1740561360433,0.03,141.19,141.17,20.0]
[1740561360726,1.0,141.32,141.18,1.0]
[1740561360932,19.6911,141.32,141.18,136.2]
[1740561361119,1.0,141.32,141.18,136.2]
[1740561361318,24.17018749,141.34,141.21,27.0811]
[1740561361525,7.0778,141.29,141.21,163.2811]
[1740561361750,17.6896,141.33,141.21,163.2811]
[1740561361921,17.6896,141.33,141.21,156.2]
[1740561362117,7.0772,141.3,141.21,156.2]
[1740561362424,7.0763,141.32,141.21,156.2]
[1740561362621,20.0,141.33,141.21,156.2]
[1740561362931,7.0767,141.31,141.21,156.2]
[1740561363240,7.0765,141.32,141.21,157.2]
[1740561363444,18.6886,141.34,141.22,6.4076]
[1740561363445,1.0,141.34,141.22,6.4076]
[1740561363747,17.6842,141.37,141.25,20.0]
[1740561363748,18.6842,141.37,141.25,20.0]
[1740561363946,1.0,141.41,141.26,2.5662]
[1740561364145,7.072,141.41,141.27,1.0]
[1740561364331,6.1021,141.43,141.3,20.0]
[1740561364642,10.70173772,141.43,141.31,6.4047]
[1740561364846,16.77253772,141.43,141.34,20.0]
[1740561365020,13.1729,141.43,141.34,156.2]
[1740561365225,1.0,141.42,141.34,20.0]
[1740561365529,8.477849,141.42,141.34,20.0]
[1740561366946,1.0,141.41,141.31,142.6047]
[1740561367137,1.0,141.4,141.3,206.26653777]
[1740561367335,21.0,141.39,141.3,206.26653777]
[1740561367538,7.0731,141.38,141.3,206.26653777]
[1740561367845,1.0,141.36,141.27,136.2]
[1740561368043,1.0,141.35,141.23,6.2017]
[1740561368241,1.6208,141.37,141.26,20.0]
[1740561368437,1.6208,141.37,141.26,226.26653777]
[1740561369746,7.0741,141.36,141.26,226.26653777]
[1740561370145,25.7594,141.36,141.26,206.26653777]
[1740561370447,7.0716,141.41,141.29,20.0]
[1740561370648,7.0716,141.41,141.29,226.26653777]
[1740561371551,2.0,141.4,141.29,226.26653777]
[1740561371927,1.0,141.38,141.29,90.06653777]
[1740561372145,2.0,141.39,141.29,90.06653777]
[1740561372346,5.55406355,141.39,141.29,90.06653777]
[1740561372723,1.0,141.38,141.29,90.06653777]
[1740561372947,1.0,141.38,141.29,70.06653777]
[1740561373552,24.7559,141.38,141.29,70.06653777]
[1740561373744,25.7559,141.38,141.29,70.06653777]
[1740561373943,1.0,141.35,141.25,70.06653777]
[1740561374139,1.0,141.35,141.25,206.26653777]
[1740561374454,1.0,141.35,141.25,70.06653777]
[1740561374927,1.0,141.34,141.25,70.06653777]
[1740561375555,1.0,141.35,141.25,70.06653777]
[1740561375728,17.689,141.33,141.25,70.06653777]
[1740561376239,7.0751,141.34,141.28,20.0]
[1740561376436,7.0736,141.37,141.28,226.26653777]
[1740561377632,17.6823,141.39,141.28,226.26653777]
[1740561377633,81.1,141.38,141.28,226.26653777]
[1740561377945,17.6823,141.39,141.28,226.26653777]
[1740561378536,17.6823,141.39,141.28,233.34463777]
[1740561378739,7.0721,141.4,141.28,233.34463777]
[1740561379143,0.03,141.35,141.28,233.34463777]
[1740561380354,0.03,141.35,141.33,20.0]
[1740561380543,1.436749,141.35,141.33,226.26653777]
[1740561382531,1.436749,141.35,141.34,7.0751]
[1740561384248,1.436749,141.35,141.34,77.14163777]
[1740561384450,1.436749,141.35,141.34,70.06653777]
[1740561384949,1.436749,141.35,141.33,136.2]
[1740561385344,1.436749,141.35,141.3,70.06653777]
[1740561386249,1.436749,141.35,141.28,143.2777]
[1740561386450,8.511449,141.35,141.28,143.2777]
[1740561387033,8.511449,141.35,141.28,136.2]
[1740561387349,8.011449,141.35,141.28,136.2]
[1740561387849,8.011449,141.35,141.26,76.23233777]
[1740561387850,8.011449,141.35,141.24,7.0801]
[1740561388249,8.011449,141.35,141.27,20.0]
[1740561388758,0.936749,141.35,141.28,7.0781]
[1740561389575,8.011449,141.35,141.28,7.0781]
[1740561389762,0.936749,141.35,141.28,7.0781]
[1740561390257,8.011549,141.35,141.27,90.06653777]
[1740561390445,0.936749,141.35,141.27,233.34493777]
[1740561391252,0.966749,141.35,141.27,233.34493777]
[1740561392363,8.041749,141.35,141.27,233.34493777]
[1740561392547,9.041749,141.35,141.25,0.063]
[1740561392753,1.0,141.34,141.25,7.1425]
[1740561392956,27.728249,141.35,141.25,7.1425]
[1740561393161,26.728249,141.35,141.25,7.1425]
[1740561393757,27.728249,141.35,141.25,0.063]
[1740561393959,25.728249,141.35,141.25,0.063]
[1740561394163,25.728249,141.35,141.25,206.32953777]
[1740561394552,0.966749,141.35,141.28,20.0]
[1740561394760,0.966749,141.35,141.28,226.26653777]
[1740561396069,0.966749,141.35,141.29,7.0776]
[1740561396284,0.966749,141.35,141.29,213.34413777]
[1740561397444,0.966749,141.35,141.32,20.0]
[1740561397648,0.966749,141.35,141.32,97.14253777]
[1740561398055,0.966749,141.35,141.32,233.34253777]
[1740561398260,0.966749,141.35,141.32,251.03283777]
[1740561398460,0.966749,141.35,141.32,293.72283777]
[1740561398663,0.966749,141.35,141.33,1.06080833]
[1740561398864,0.966749,141.35,141.34,42.69]
[1740561399761,0.966749,141.35,141.34,49.7651]
[1740561399965,0.966749,141.35,141.34,7.0751]
[1740561402669,0.966749,141.35,141.34,70.06653777]
[1740561402868,0.966749,141.35,141.34,207.26653777]
[1740561403067,0.966749,141.35,141.34,206.26653777]
[1740561403658,0.966749,141.35,141.34,213.34163777]
[1740561404978,0.966749,141.35,141.34,264.54413777]
[1740561404979,4.9e-05,141.35,141.34,264.54413777]
[1740561405173,4.9e-05,141.35,141.34,266.10263777]
[1740561405351,0.03,141.42,141.38,1.0]
[1740561405555,0.03,141.42,141.41,20.0]
[1740561405769,0.03,141.42,141.41,233.33813777]
[1740561407475,0.03,141.42,141.41,206.26653777]
[1740561407769,0.03,141.42,141.4,7.072]
[1740561407969,0.03,141.42,141.37,7.0736]
[1740561408174,0.03,141.42,141.37,213.34013777]
[1740561408351,0.03,141.42,141.37,70.06653777]
[1740561408979,0.03,141.42,141.34,136.2]
[1740561409183,0.03,141.42,141.33,143.2754]
[1740561409673,0.03,141.42,141.33,136.2]
[1740561409867,0.03,141.42,141.33,70.06653777]
[1740561411269,0.03,141.42,141.33,213.34193777]
[1740561411463,0.03,141.42,141.33,206.26653777]
[1740561411870,83.13,141.42,141.33,70.06653777]
[1740561412175,1.0,141.41,141.33,70.06653777]
[1740561412790,6.1771,141.39,141.31,70.06653777]
[1740561413278,9.76551883,141.39,141.31,70.06653777]
[1740561413664,7.0731,141.38,141.31,70.06653777]
[1740561413867,1.6521,141.37,141.31,70.06653777]
[1740561414273,13.2497,141.39,141.31,213.34303777]
[1740561416589,6.1771,141.39,141.31,213.34303777]
[1740561417178,13.2498,141.39,141.31,213.34303777]
[1740561417378,13.2498,141.39,141.31,70.06653777]
[1740561417576,30.9313,141.39,141.31,70.06653777]
[1740561417765,1.0,141.38,141.31,70.06653777]
[1740561418096,2.0,141.38,141.31,70.06653777]
[1740561418402,7.0736,141.37,141.29,77.14403777]
[1740561420093,6.1771,141.39,141.3,42.69]
[1740561420397,1.6555,141.41,141.33,20.0]
[1740561420761,1.6555,141.41,141.33,62.69]
[1740561420980,0.03,141.42,141.36,20.0]
[1740561421288,0.03,141.42,141.36,226.26653777]
[1740561421469,0.03,141.42,141.36,268.95653777]
[1740561421666,0.03,141.42,141.37,50.30012773]
[1740561421880,0.03,141.42,141.38,49.7631]
[1740561423472,0.03,141.42,141.37,6.5497]
[1740561423665,0.03,141.42,141.37,206.26653777]
[1740561423865,1.5733,141.41,141.37,70.06653777]